bitfinex/quotes_ETHUSD_20250324
["timestamp","ask_amount","ask_price","bid_price","bid_amount"]
[1742775496382,3.0,2006.6,2006.4,0.55]
[1742775496954,4.98332,2006.7,2006.4,0.55]
[1742775497378,3.0,2006.6,2006.4,0.55]
[1742775497562,7.98356,2006.6,2006.4,0.55]
[1742775497767,3.0,2006.6,2006.4,1.3328]
[1742775498387,3.0,2006.6,2006.4,0.55]
[1742775498961,0.11855779,2006.5,2006.4,0.55]
[1742775499259,3.0,2006.6,2006.4,3.16039041]
[1742775499470,0.11855779,2006.5,2006.4,3.16039041]
[1742775500583,0.11855779,2006.5,2006.4,8.14444041]
[1742775500962,3.0,2006.7,2006.4,8.14444041]
[1742775501200,0.11854216,2006.5,2006.4,8.14444041]
[1742775501355,0.11854216,2006.5,2006.4,3.16039041]
[1742775501562,7.98337,2006.7,2006.4,8.14444041]
[1742775501763,0.11854216,2006.5,2006.4,8.14444041]
[1742775502058,5.33711,2007.3,2006.8,4.98289]
[1742775502264,4.98237,2007.1,2006.9,4.727]
[1742775502467,3.0,2007.0,2006.9,4.727]
[1742775502862,4.98237,2007.1,2006.9,4.727]
[1742775503063,7.98256,2007.0,2006.9,4.727]
[1742775504297,3.0,2007.0,2006.9,4.727]
[1742775505262,3.0,2007.0,2006.9,5.774857]
[1742775505997,5.33725,2007.3,2006.9,6.324857]
[1742775506179,3.0,2007.2,2006.9,11.307657]
[1742775506497,7.98214,2007.2,2006.9,6.324857]
[1742775507087,3.0,2007.0,2006.9,6.324857]
[1742775511066,4.98214,2007.2,2006.9,6.324857]
[1742775511274,3.3553,2007.3,2007.0,2.0075967]
[1742775511493,7.98182,2007.3,2007.0,2.0075967]
[1742775511687,3.0,2007.3,2007.0,6.9901367]
[1742775511887,0.3553,2007.5,2007.1,5.53225]
[1742775512089,3.0,2007.4,2007.1,6.30055]
[1742775512294,3.0,2007.4,2007.2,1.32906967]
[1742775512495,3.0,2007.4,2007.3,4.726]
[1742775512689,7.98156,2007.4,2007.3,4.726]
[1742775513293,3.0,2007.1,2007.0,2.5575967]
[1742775513472,3.0,2007.1,2007.0,7.2835967]
[1742775513672,7.98231,2007.1,2007.0,7.2835967]
[1742775513886,8.10555579,2007.1,2007.0,7.2835967]
[1742775514877,8.10555579,2007.1,2007.0,6.7335967]
[1742775515674,8.10555579,2007.1,2007.0,4.726]
[1742775517399,0.12324579,2007.1,2007.0,5.276]
[1742775517608,0.12324579,2007.1,2007.0,11.01286]
[1742775517780,4.98188,2007.3,2007.0,11.01286]
[1742775517981,3.0,2007.4,2007.0,11.01281]
[1742775518308,7.9817,2007.4,2007.1,1.20275654]
[1742775518884,4.98145,2007.5,2007.1,6.18487654]
[1742775519432,3.0,2007.5,2007.3,0.7543]
[1742775519708,3.0,2007.5,2007.4,4.725]
[1742775519898,4.98132,2007.5,2007.4,6.269307]
[1742775520087,3.0,2007.6,2007.4,6.269307]
[1742775520281,7.98111,2007.6,2007.4,6.269307]
[1742775520877,4.98132,2007.5,2007.4,6.269307]
[1742775521099,5.33662,2007.5,2007.4,4.725]
[1742775522204,5.33662,2007.5,2007.1,2.50705654]
[1742775522395,7.98168,2007.4,2007.2,4.725]
[1742775523993,7.98168,2007.4,2007.3,4.725]
[1742775524792,7.98206,2007.2,2007.1,1.20275654]
[1742775525484,7.98231,2007.1,2007.0,4.725]
[1742775525679,4.9828,2006.9,2006.8,8.0]
[1742775525914,3.0,2006.9,2006.8,12.725]
[1742775526090,3.0,2006.9,2006.8,13.275]
[1742775526496,3.0,2006.9,2006.8,5.275]
[1742775526699,3.12495686,2006.9,2006.8,9.935542]
[1742775527221,8.10775686,2006.9,2006.8,9.385542]
[1742775527515,8.10775686,2006.9,2006.8,4.725]
[1742775528116,7.98305,2006.8,2006.7,28.114]
[1742775528419,7.98305,2006.8,2006.7,32.839]
[1742775528621,8.10793987,2006.8,2006.7,32.839]
[1742775529515,8.10793987,2006.8,2006.7,32.289]
[1742775531097,8.10793987,2006.8,2006.7,4.725]
[1742775539659,3.0,2006.5,2006.3,1.79583124]
[1742775539803,0.12488987,2006.8,2006.3,4.725]
[1742775539997,5.10479307,2006.4,2006.3,4.725]
[1742775540301,7.98429,2006.3,2006.2,8.0]
[1742775540498,3.12067605,2006.3,2006.2,8.35807]
[1742775541420,3.12067605,2006.3,2006.2,13.34261]
[1742775541625,3.12067605,2006.3,2006.2,13.89261]
[1742775541947,7.98359,2006.6,2006.3,0.55]
[1742775542131,3.0,2006.7,2006.3,0.55]
[1742775542303,3.0,2006.7,2006.4,6.642357]
[1742775542706,7.98334,2006.7,2006.4,1.658507]
[1742775543950,0.12087708,2006.6,2006.4,1.658507]
[1742775544452,0.12087708,2006.6,2006.4,9.658507]
[1742775546642,5.10454708,2006.6,2006.4,9.658507]
[1742775546832,0.12087708,2006.6,2006.5,1.0208507]
[1742775547020,7.98345,2006.7,2006.5,1.0208507]
[1742775547340,7.98345,2006.7,2006.6,4.725]
[1742775548043,5.71891959,2007.1,2006.6,4.725]
[1742775548245,7.98256,2007.0,2006.7,0.7743]
[1742775549144,3.0,2007.0,2006.8,0.55]
[1742775549347,3.0,2007.0,2006.8,1.653246]
[1742775550124,4.98206,2007.2,2006.9,4.9828]
[1742775550328,4.98206,2007.2,2006.8,1.653246]
[1742775550329,4.98234,2007.1,2006.8,6.636226]
[1742775550548,3.0,2007.0,2006.8,6.636226]
[1742775550721,4.98234,2007.1,2006.8,6.636226]
[1742775550921,9.96486,2007.1,2006.9,1.2393666]
[1742775551121,3.0,2007.0,2006.9,1.2393666]
[1742775552055,3.0,2007.2,2006.9,1.2393666]
[1742775552224,7.98213,2007.2,2007.0,4.725]
[1742775552427,3.0,2007.2,2007.0,5.4993]
[1742775552632,3.0,2007.2,2007.1,1.17213866]
[1742775552832,3.0,2007.2,2007.0,4.725]
[1742775553028,7.98206,2007.2,2007.0,4.725]
[1742775553433,0.121325,2007.1,2007.0,5.275]
[1742775553634,8.103635,2007.1,2007.0,4.725]
[1742775554469,3.121325,2007.1,2007.0,4.725]
[1742775554620,3.121325,2007.1,2007.0,5.3852546]
[1742775555054,3.121325,2007.1,2007.0,11.6921146]
[1742775555260,3.0,2007.1,2007.0,11.6921146]
[1742775555757,3.0,2007.1,2007.0,6.7095546]
[1742775556456,3.12433781,2007.1,2007.0,6.7095546]
[1742775557275,5.33649,2007.6,2007.2,4.98206]
[1742775557574,4.98094,2007.7,2007.3,1.272506]
[1742775557754,3.0,2007.6,2007.4,4.725]
[1742775558143,7.98109,2007.6,2007.4,4.725]
[1742775558960,0.11492509,2007.5,2007.4,4.725]
[1742775559161,0.11492509,2007.5,2007.4,5.8229496]
[1742775560371,8.09624509,2007.5,2007.4,5.8229496]
[1742775563794,3.11492509,2007.5,2007.4,5.8229496]
[1742775564073,3.11492509,2007.5,2007.4,6.3729496]
[1742775564377,3.11492509,2007.5,2007.4,11.3545096]
[1742775564780,3.0,2007.5,2007.4,11.3545096]
[1742775565251,3.11552825,2007.5,2007.4,11.3545096]
[1742775566105,3.0,2007.5,2007.4,11.3545096]
[1742775566451,3.11552825,2007.5,2007.4,11.3545096]
[1742775566875,0.11552825,2007.5,2007.4,12.1702096]
[1742775567152,3.0,2007.9,2007.6,0.55]
[1742775567352,3.0,2007.9,2007.7,0.553112]
[1742775567576,3.0,2007.9,2007.8,4.723]
[1742775567974,0.3553,2008.6,2007.8,6.0887]
[1742775568175,4.97928,2008.4,2007.9,5.53021]
[1742775568375,0.3553,2008.6,2007.9,5.53021]
[1742775568376,5.33393,2008.6,2008.2,4.97957]
[1742775568566,3.0,2008.5,2008.3,5.80051]
[1742775568755,7.97895,2008.5,2008.3,5.80051]
[1742775568962,4.97908,2008.4,2008.3,5.80051]
[1742775569162,7.97908,2008.4,2008.3,4.723]
[1742775570758,3.0,2008.4,2008.3,5.273]
[1742775571093,4.97886,2008.5,2008.3,5.273]
[1742775571270,3.0,2008.4,2008.3,5.273]
[1742775572066,3.0,2008.6,2008.4,0.55]
[1742775572258,7.97871,2008.6,2008.4,1.21387]
[1742775572464,3.0,2008.4,2008.3,5.273]
[1742775573194,7.97908,2008.4,2008.3,4.723]
[1742775573391,4.97936,2008.3,2008.1,0.8157]
[1742775573595,3.0,2008.4,2008.3,4.722]
[1742775573777,7.97894,2008.5,2008.3,4.722]
[1742775573972,5.08789869,2008.4,2008.3,6.378743]
[1742775574193,8.08789869,2008.4,2008.3,4.722]
[1742775582797,8.08789869,2008.4,2008.3,4.721]
[1742775584304,7.97934,2008.3,2008.1,0.55]
[1742775584506,7.97934,2008.3,2008.2,4.721]
[1742775586501,3.0,2008.3,2008.2,5.5192]
[1742775586875,7.97933,2008.3,2008.2,5.5192]
[1742775588408,7.97933,2008.3,2008.2,6.72346984]
[1742775589001,3.11161848,2008.3,2008.2,6.72346984]
[1742775592397,3.11161848,2008.3,2008.2,4.721]
[1742775595714,3.11161848,2008.3,2008.2,5.271]
[1742775595898,3.11161848,2008.3,2008.2,11.00508]
[1742775596099,0.11161848,2008.3,2008.2,11.00508]
[1742775596344,3.0,2008.6,2008.3,0.55]
[1742775596627,3.0,2008.6,2008.3,2.148466]
[1742775596795,3.0,2008.6,2008.3,7.127726]
[1742775597406,7.97861,2008.6,2008.3,7.127726]
[1742775598229,7.9784,2008.7,2008.3,7.127726]
[1742775598908,12.95694,2008.7,2008.4,0.46430982]
[1742775599118,7.9784,2008.7,2008.4,0.46430982]
[1742775599298,7.9784,2008.7,2008.4,2.2690104]
[1742775599496,3.0,2008.7,2008.5,0.55]
[1742775599697,3.0,2008.7,2008.6,4.72]
[1742775601432,7.97834,2008.7,2008.6,4.72]
[1742775601600,0.1209504,2008.8,2008.7,4.97834]
[1742775601795,0.1209504,2008.8,2008.7,1.60026244]
[1742775602000,0.1209504,2008.8,2008.7,7.38288223]
[1742775602496,0.1209504,2008.8,2008.7,15.38288223]
[1742775602701,0.1209504,2008.8,2008.7,15.33310244]
[1742775602901,0.1209504,2008.8,2008.7,18.68242334]
[1742775603222,0.1209504,2008.8,2008.7,19.14542117]
[1742775603396,0.1209504,2008.8,2008.7,19.60842083]
[1742775603597,4.97621,2009.6,2009.1,4.97729]
[1742775603801,0.60634883,2009.8,2009.3,0.55]
[1742775604035,5.08465567,2009.5,2009.3,0.55]
[1742775604196,4.9766,2009.4,2009.2,28.041729]
[1742775604401,4.97685,2009.3,2009.2,27.544]
[1742775604634,4.97685,2009.3,2009.2,32.264]
[1742775604834,8.08530189,2009.3,2009.2,32.264]
[1742775605053,3.4762,2009.2,2008.7,11.14529653]
[1742775605198,3.4762,2009.2,2008.8,4.72]
[1742775605399,0.10874431,2009.1,2008.9,0.7705]
[1742775605744,0.10874431,2009.1,2009.0,0.55]
[1742775606043,7.97688,2009.3,2009.0,0.55]
[1742775606203,0.11033115,2009.1,2009.0,0.55]
[1742775606403,3.0,2009.4,2009.0,13.5773691]
[1742775606606,4.97674,2009.4,2009.2,0.55]
[1742775606838,4.97674,2009.4,2009.3,4.719]
[1742775607008,7.97674,2009.4,2009.3,4.719]
[1742775607647,3.0,2009.4,2009.3,4.719]
[1742775607846,7.9766,2009.4,2009.3,4.719]
[1742775608617,4.97718,2009.2,2009.1,0.55]
[1742775608860,4.97718,2009.2,2009.1,5.269]
[1742775609417,3.0,2009.3,2009.1,5.269]
[1742775609613,3.0,2009.2,2009.0,0.55]
[1742775609812,7.9771,2009.2,2009.1,5.268]
[1742775611142,7.9771,2009.2,2009.1,0.55]
[1742775611376,7.9771,2009.2,2009.1,5.268]
[1742775612341,7.9771,2009.2,2009.1,4.718]
[1742775612547,7.9771,2009.2,2009.1,5.268]
[1742775612944,4.9774,2009.1,2008.8,8.0]
[1742775613145,3.4762,2009.2,2008.8,8.0]
[1742775613146,7.97784,2008.9,2008.8,8.0]
[1742775613347,7.97784,2008.9,2008.8,12.718]
[1742775613526,7.97784,2008.9,2008.8,4.718]
[1742775614347,3.0,2008.9,2008.8,4.718]
[1742775614547,3.1098082,2008.9,2008.8,4.718]
[1742775615143,3.1098082,2008.9,2008.7,0.55]
[1742775615328,8.0876482,2008.9,2008.8,4.718]
[1742775617527,5.45449,2008.8,2008.6,0.978179]
[1742775617754,7.97834,2008.7,2008.6,0.55]
[1742775617955,8.08823287,2008.7,2008.6,5.268]
[1742775618249,8.08823287,2008.7,2008.6,0.55]
[1742775618421,7.97859,2008.6,2008.5,27.544]
[1742775618633,7.97903,2008.5,2008.4,4.718]
[1742775619056,8.08818609,2008.5,2008.4,4.718]
[1742775619460,7.9791,2008.4,2008.3,0.55]
[1742775619749,7.9791,2008.4,2008.3,5.268]
[1742775619944,8.08705205,2008.4,2008.3,5.268]
[1742775620355,8.08705205,2008.4,2008.3,0.55]
[1742775620568,8.08705205,2008.4,2008.3,5.268]
[1742775622030,7.93705205,2008.4,2008.3,5.268]
[1742775622355,3.10795205,2008.4,2008.3,5.268]
[1742775623478,3.10795205,2008.4,2008.3,0.55]
[1742775623688,3.10795205,2008.4,2008.3,5.269]
[1742775624145,8.08703205,2008.4,2008.3,5.269]
[1742775624346,0.10795205,2008.4,2008.3,5.269]
[1742775626236,0.10795205,2008.4,2008.3,12.67018094]
[1742775626441,3.0,2008.6,2008.3,8.78318094]
[1742775626640,0.10809246,2008.4,2008.3,8.78318094]
[1742775626853,3.0,2008.6,2008.3,13.50118094]
[1742775627154,7.97863,2008.6,2008.3,8.52185094]
[1742775627356,0.10815935,2008.5,2008.3,8.52185094]
[1742775628143,5.08698935,2008.5,2008.4,4.719]
[1742775629144,8.56318935,2008.5,2008.4,4.719]
[1742775629975,3.58435935,2008.5,2008.4,4.719]
[1742775630181,3.10815935,2008.5,2008.4,4.719]
[1742775631076,8.08698935,2008.5,2008.4,4.719]
[1742775631681,3.0,2008.4,2008.3,0.55]
[1742775631883,8.08698935,2008.5,2008.3,5.269]
[1742775632077,3.0,2008.8,2008.5,0.55]
[1742775632275,7.97819,2008.8,2008.5,0.55]
[1742775632784,5.45356,2009.1,2008.7,5.52824]
[1742775633087,3.0,2009.2,2008.8,9.69692]
[1742775633289,3.0,2009.2,2008.9,0.55]
[1742775633595,4.97663,2009.4,2009.1,0.55]
[1742775633596,4.97661,2009.4,2009.1,0.55]
[1742775633905,4.97661,2009.4,2008.7,27.542]
[1742775633906,7.97834,2008.7,2008.6,8.0]
[1742775634090,3.0,2008.7,2008.6,8.0]
[1742775634499,3.0,2008.6,2008.4,0.55]
[1742775634665,3.0,2008.8,2008.5,1.024831]
[1742775634991,4.97834,2008.7,2008.6,4.719]
[1742775636094,3.0,2008.4,2008.2,0.832]
[1742775636293,4.97923,2008.4,2008.3,4.719]
[1742775636701,7.97923,2008.4,2008.3,4.719]
[1742775636865,3.0,2008.3,2008.2,0.55]
[1742775637197,3.0,2008.3,2008.2,5.271]
[1742775637495,3.0,2008.4,2008.2,5.27]
[1742775637694,7.97919,2008.4,2008.2,5.27]
[1742775638384,7.97919,2008.4,2008.3,4.719]
[1742775640585,4.97864,2008.6,2008.3,5.269]
[1742775640760,3.0,2008.5,2008.3,4.719]
[1742775641264,3.0,2008.5,2008.3,6.33988162]
[1742775641514,3.0,2008.5,2008.4,4.719]
[1742775641793,3.0,2008.6,2008.4,4.719]
[1742775642001,7.97859,2008.6,2008.4,4.719]
[1742775642594,3.0,2008.6,2008.5,4.719]
[1742775642800,4.97848,2008.7,2008.5,4.719]
[1742775642801,3.0,2008.7,2008.5,4.719]
[1742775643697,3.0,2008.8,2008.5,9.69774]
[1742775643884,7.9781,2008.8,2008.5,4.719]
[1742775645101,4.97835,2008.7,2008.5,4.719]
[1742775645301,3.0,2008.6,2008.5,5.269]
[1742775645905,3.0,2008.6,2008.5,10.24783]
[1742775646066,3.0,2008.6,2008.5,4.719]
[1742775646266,3.0,2008.6,2008.5,5.269]
[1742775647304,3.0,2008.6,2008.5,5.73191237]
[1742775647683,7.9779,2008.9,2008.5,10.71074237]
[1742775648083,12.9559,2008.9,2008.5,10.71074237]
[1742775648618,0.4762,2009.2,2008.7,0.55]
[1742775648814,5.45344,2009.2,2008.8,4.978]
[1742775648967,3.0,2009.1,2008.9,4.719]
[1742775649376,0.4762,2009.2,2008.9,4.719]
[1742775649692,4.97694,2009.3,2008.9,5.5126]
[1742775649892,4.97692,2009.3,2008.9,5.5126]
[1742775650092,0.4762,2009.4,2009.0,5.52736]
[1742775650292,5.45284,2009.4,2009.0,5.52736]
[1742775650481,3.0,2009.3,2009.0,5.52736]
[1742775650682,5.45233,2009.6,2009.0,5.52736]
[1742775650867,0.4762,2009.6,2009.0,5.52759]
[1742775651071,0.4762,2009.6,2009.1,6.3215033]
[1742775651311,3.0,2009.4,2009.1,6.3215033]
[1742775651514,3.0,2009.4,2009.2,0.7566]
[1742775651713,4.97645,2009.5,2009.3,4.718]
[1742775652093,9.95301,2009.5,2009.3,4.718]
[1742775652387,3.0,2009.4,2009.3,4.718]
[1742775653183,3.0,2009.4,2009.3,5.89761033]
[1742775658885,3.0,2009.4,2009.3,1.17961033]
[1742775659085,3.0,2009.4,2009.3,5.89661033]
[1742775659494,3.0,2009.5,2009.3,5.89661033]
[1742775660279,7.97638,2009.5,2009.3,5.89661033]
[1742775664579,7.97638,2009.5,2009.3,4.717]
[1742775666834,0.4762,2009.8,2009.3,4.717]
[1742775666982,0.4762,2010.0,2009.4,1.35806221]
[1742775667189,0.4762,2010.2,2009.6,0.55]
[1742775667388,5.45103,2010.2,2009.7,4.717]
[1742775667595,10.4259,2010.2,2009.7,9.69266]
[1742775667819,4.97487,2010.1,2009.7,9.69266]
[1742775668114,3.0,2010.0,2009.7,4.717]
[1742775668295,4.97516,2010.0,2009.7,4.717]
[1742775668884,0.4762,2009.9,2009.7,4.717]
[1742775669302,7.97561,2009.8,2009.7,4.717]
[1742775669915,3.0,2009.8,2009.7,4.717]
[1742775670103,7.97561,2009.8,2009.7,4.717]
[1742775671227,3.0,2009.8,2009.7,4.717]
[1742775671391,7.97561,2009.8,2009.7,4.717]
[1742775673333,3.0,2009.8,2009.7,4.717]
[1742775673649,3.0,2009.8,2009.7,5.88736902]
[1742775673799,3.0,2010.2,2009.8,0.7583]
[1742775674131,3.0,2010.0,2009.8,0.7583]
[1742775675562,3.0,2010.0,2009.8,8.7583]
[1742775675848,3.0,2010.0,2009.8,13.4732549]
[1742775676463,3.0,2010.0,2009.8,5.4732549]
[1742775677108,4.97557,2009.9,2009.7,8.0]
[1742775677307,7.97561,2009.8,2009.7,8.0]
[1742775677652,7.97561,2009.8,2009.7,4.716]
[1742775677952,3.0,2009.8,2009.7,4.716]
[1742775678169,3.0,2009.8,2009.7,6.0243]
[1742775678307,3.0,2009.8,2009.7,9.37953]
[1742775679910,3.0,2009.8,2009.7,8.62123]
[1742775680552,7.97561,2009.8,2009.7,5.266]
[1742775680851,7.97561,2009.8,2009.7,4.716]
[1742775681239,7.97586,2009.7,2009.6,28.078]
[1742775681455,3.0,2009.7,2009.6,32.794]
[1742775682357,7.97586,2009.7,2009.6,32.794]
[1742775682561,7.97586,2009.7,2009.6,32.244]
[1742775683765,7.97586,2009.7,2009.6,35.56663721]
[1742775684152,7.97586,2009.7,2009.6,8.03863721]
[1742775684352,3.0,2009.7,2009.6,4.716]
[1742775684677,3.0,2009.7,2009.6,5.4799]
[1742775684962,7.97586,2009.7,2009.6,4.716]
[1742775686424,0.4762,2010.0,2009.6,4.716]
[1742775686633,3.0,2009.8,2009.7,0.969214]
[1742775686870,3.0,2009.9,2009.7,0.7639]
[1742775687331,7.97508,2010.1,2009.7,0.7639]
[1742775687669,4.97513,2010.0,2009.7,0.7639]
[1742775688281,3.0,2009.9,2009.7,0.7639]
[1742775688663,4.97478,2010.2,2009.9,0.7639]
[1742775688859,4.97478,2010.2,2010.0,4.716]
[1742775689248,3.0,2010.1,2010.0,4.716]
[1742775689667,7.97487,2010.1,2010.0,4.716]
[1742775689981,4.97532,2010.0,2009.7,10.0355]
[1742775690302,4.97561,2009.8,2009.7,8.0]
[1742775690596,4.97561,2009.8,2009.7,4.715]
[1742775690795,0.4762,2010.0,2009.4,0.7639]
[1742775690796,3.0,2009.6,2009.4,0.7639]
[1742775691101,3.0,2009.6,2009.5,4.715]
[1742775691755,7.97611,2009.6,2009.5,4.715]
[1742775692598,3.0,2009.6,2009.5,4.715]
[1742775693298,7.97611,2009.6,2009.5,4.715]
[1742775696986,3.0,2009.6,2009.5,4.715]
[1742775697155,3.0,2009.6,2009.5,8.60844261]
[1742775697781,3.0,2009.7,2009.5,8.60844261]
[1742775697984,3.0,2009.7,2009.5,9.07063854]
[1742775698184,7.97493,2010.1,2009.5,14.04698854]
[1742775698487,7.97492,2010.1,2009.8,0.7921]
[1742775698682,4.97492,2010.1,2009.9,4.716]
[1742775699016,7.97492,2010.1,2009.9,4.716]
[1742775699286,4.97492,2010.1,2009.9,4.716]
[1742775699455,7.97492,2010.1,2009.9,4.716]
[1742775699660,3.0,2010.1,2009.9,4.716]
[1742775699858,3.0,2010.1,2009.9,5.764392]
[1742775700366,7.97492,2010.1,2009.9,5.764392]
[1742775700566,3.0,2010.1,2009.9,5.764392]
[1742775700890,7.97491,2010.1,2009.9,5.764392]
[1742775701072,7.97491,2010.1,2009.9,4.716]
[1742775702385,12.95001,2010.1,2009.9,4.716]
[1742775702565,4.97512,2010.0,2009.9,4.716]
[1742775703287,7.97491,2010.1,2009.9,4.716]
[1742775703782,12.94998,2010.1,2009.9,4.716]
[1742775704177,7.97491,2010.1,2009.9,4.716]
[1742775704791,12.95,2010.1,2009.9,4.716]
[1742775705084,3.0,2010.1,2009.9,4.716]
[1742775705312,3.0,2010.1,2009.9,9.41493391]
[1742775709186,3.0,2010.0,2009.9,9.41493391]
[1742775709387,3.0,2010.2,2009.9,9.41493391]
[1742775709604,0.4762,2010.4,2010.0,0.7773]
[1742775709605,4.97415,2010.4,2010.0,0.7773]
[1742775709907,0.1209504,2010.8,2010.2,0.7773]
[1742775710116,4.97349,2010.7,2010.3,4.715]
[1742775710321,5.0940904,2010.8,2010.3,9.68926]
[1742775710486,4.9735,2010.7,2010.3,4.715]
[1742775710820,7.97381,2010.6,2010.3,5.91339044]
[1742775711573,4.9739,2010.5,2010.3,5.91339044]
[1742775712017,12.94765,2010.6,2010.3,5.91339044]
[1742775712217,7.97379,2010.6,2010.3,5.91339044]
[1742775712699,4.97389,2010.5,2010.3,5.91339044]
[1742775713107,4.97389,2010.5,2010.3,4.715]
[1742775713282,3.0,2010.4,2010.3,4.715]
[1742775717015,3.0,2010.4,2010.3,10.46058]
[1742775717528,0.1209504,2010.8,2010.4,4.97393]
[1742775717728,0.1209504,2010.8,2010.5,5.74506]
[1742775717931,3.1209504,2010.8,2010.6,1.071899]
[1742775718091,5.0940904,2010.8,2010.5,0.7712]
[1742775718284,5.0940904,2010.8,2010.6,4.714]
[1742775718620,8.0940904,2010.8,2010.6,4.714]
[1742775718977,3.0,2010.7,2010.6,4.714]
[1742775719183,3.1209504,2010.8,2010.6,4.714]
[1742775719840,3.1209504,2010.8,2010.7,0.7712]
[1742775720889,8.0940904,2010.8,2010.6,12.714]
[1742775721089,4.97339,2010.7,2010.6,12.714]
[1742775721488,8.0941404,2010.8,2010.6,4.714]
[1742775722126,3.1209504,2010.8,2010.6,4.714]
[1742775722297,3.1209504,2010.8,2010.6,5.26252]
[1742775722493,8.0941504,2010.8,2010.6,5.26252]
[1742775722823,3.1209504,2010.8,2010.6,4.714]
[1742775723028,8.0940904,2010.8,2010.6,4.714]
[1742775723524,4.97339,2010.7,2010.6,4.714]
[1742775724830,3.1209504,2010.8,2010.5,0.01264225]
[1742775725127,5.0941104,2010.8,2010.7,0.8246]
[1742775725429,3.1209504,2010.8,2010.7,0.8246]
[1742775726427,3.1209504,2010.8,2010.6,4.713]
[1742775726600,3.1209504,2010.8,2010.6,12.713]
[1742775727298,0.1209504,2010.8,2010.6,17.6866]
[1742775727498,0.1209504,2010.8,2010.6,14.55981423]
[1742775727700,3.1209504,2010.8,2010.6,14.55981423]
[1742775727899,3.1209504,2010.8,2010.6,12.713]
[1742775728114,4.97339,2010.7,2010.6,8.0]
[1742775728319,4.97339,2010.7,2010.6,12.713]
[1742775728518,8.44959,2010.7,2010.6,4.713]
[1742775728725,7.97363,2010.6,2010.5,0.01264225]
[1742775729131,8.44983,2010.6,2010.5,0.01264225]
[1742775730903,8.44983,2010.6,2010.5,2.25e-06]
[1742775731148,8.99983,2010.6,2010.5,2.25e-06]
[1742775731430,8.82306009,2010.6,2010.5,2.25e-06]
[1742775731831,8.44983,2010.6,2010.5,2.25e-06]
[1742775733908,8.81521048,2010.6,2010.5,2.25e-06]
[1742775736953,8.33901048,2010.6,2010.5,2.25e-06]
[1742775737423,7.97363,2010.6,2010.5,2.25e-06]
[1742775737624,7.97363,2010.6,2010.5,4.71400225]
[1742775739077,5.0941504,2010.8,2010.5,4.71400225]
[1742775739234,4.97344,2010.7,2010.5,6.55970623]
[1742775739434,3.0,2010.6,2010.5,14.55970623]
[1742775742360,0.1209504,2010.8,2010.5,14.55970623]
[1742775742560,3.0,2010.7,2010.5,14.55970623]
[1742775743169,7.97353,2010.7,2010.5,14.55970623]
[1742775743479,3.0,2010.7,2010.5,14.55970623]
[1742775743651,7.97351,2010.7,2010.5,14.55970623]
[1742775743850,7.97351,2010.7,2010.5,12.714]
[1742775744050,4.97363,2010.6,2010.5,8.0]
[1742775744350,4.97363,2010.6,2010.5,12.714]
[1742775744564,4.97363,2010.6,2010.5,4.714]
[1742775745266,4.97363,2010.6,2010.4,0.7689]
[1742775745584,4.97363,2010.6,2010.5,4.714]
[1742775745976,7.97388,2010.5,2010.4,8.7689]
[1742775746186,7.97388,2010.5,2010.4,13.4829]
[1742775746548,7.97388,2010.5,2010.4,5.4829]
[1742775746960,3.0,2010.5,2010.4,5.4829]
[1742775747583,7.97388,2010.5,2010.4,5.4829]
[1742775748362,3.0,2010.5,2010.4,5.4829]
[1742775748989,3.0,2010.5,2010.4,4.714]
[1742775749286,7.97388,2010.5,2010.4,4.714]
[1742775752175,3.0,2010.5,2010.4,5.5308]
[1742775752376,3.0,2010.5,2010.4,9.73418763]
[1742775753488,7.97388,2010.5,2010.4,17.73418763]
[1742775753787,7.97388,2010.5,2010.4,13.5308]
[1742775754489,3.0,2010.5,2010.4,13.5308]
[1742775755211,7.97388,2010.5,2010.4,13.5308]
[1742775755354,7.97388,2010.5,2010.4,5.5308]
[1742775755898,7.97388,2010.5,2010.4,4.714]
[1742775757493,7.97422,2010.4,2010.2,1.80287627]
[1742775757689,7.97422,2010.4,2010.2,0.8168]
[1742775757870,4.97438,2010.3,2010.1,35.515]
[1742775758068,4.97438,2010.3,2010.2,4.713]
[1742775758677,7.97462,2010.2,2010.1,27.515]
[1742775758876,7.97462,2010.2,2010.1,32.228]
[1742775762961,4.97512,2010.0,2009.9,8.0]
[1742775763167,8.45132,2010.0,2009.9,8.0]
[1742775763694,7.97561,2009.8,2009.7,4.713]
[1742775768988,3.0,2009.8,2009.7,4.713]
[1742775769334,4.97474,2010.2,2009.8,0.792]
[1742775769538,7.9749,2010.1,2009.8,0.792]
[1742775769829,9.95001,2010.1,2009.9,1.848066]
[1742775770532,9.95001,2010.1,2009.9,9.848066]
[1742775770746,4.9749,2010.1,2009.9,9.848066]
[1742775770894,7.9749,2010.1,2009.9,9.848066]
[1742775771093,12.94998,2010.1,2009.9,9.848066]
[1742775771394,4.97512,2010.0,2009.9,9.848066]
[1742775772208,4.97512,2010.0,2009.9,8.0]
[1742775772424,4.97512,2010.0,2009.8,0.792]